bitfinex-derivatives/quotes_SOLF0:USTF0_20230105
["timestamp","ask_amount","ask_price","bid_price","bid_amount"]
[1672912138475,0.00097106,12.948,12.939,76.75039562]
[1672912138686,0.00097106,12.948,12.942,76.6]
[1672912139209,0.00097106,12.948,12.943,10.0]
[1672912139525,43.5455,12.961,12.943,10.0]
[1672912139526,43.5455,12.961,12.946,76.73]
[1672912139736,43.5455,12.961,12.947,10.0]
[1672912140158,10.0,12.96,12.947,10.0]
[1672912140471,10.0,12.96,12.949,0.06938316]
[1672912145723,76.61,12.967,12.949,0.06938316]
[1672912145938,45.4373,12.965,12.953,0.069729]
[1672912146147,10.0,12.964,12.953,0.069729]
[1672912148041,45.4373,12.965,12.953,0.069729]
[1672912148668,10.0,12.964,12.953,0.069729]
[1672912153086,77.23,12.96,12.939,76.94]
[1672912153397,77.23,12.96,12.94,44.6738]
[1672912153603,115.821,12.96,12.94,44.6738]
[1672912153815,10.0,12.959,12.941,10.0]
[1672912154235,0.06367895,12.955,12.945,0.06243832]
[1672912158442,10.06367895,12.955,12.945,0.06243832]
[1672912163704,64.19367895,12.955,12.945,0.06243832]
[1672912164648,10.0,12.952,12.945,0.06243832]
[1672912166954,54.13,12.953,12.945,0.06243832]
[1672912167169,10.0,12.952,12.945,0.06243832]
[1672912167903,9.80608313,12.952,12.945,0.06243832]
[1672912169057,59.80608313,12.952,12.945,0.06243832]
[1672912169474,54.13,12.953,12.945,0.06243832]
[1672912170103,10.0,12.952,12.945,0.06243832]
[1672912171688,54.13,12.953,12.945,0.06243832]
[1672912172422,0.06367895,12.955,12.945,0.06243832]
[1672912173055,10.06367895,12.955,12.945,0.06243832]
[1672912175477,0.06367895,12.955,12.945,0.06243832]
[1672912175784,54.11,12.961,12.946,1888.13]
[1672912175991,54.11,12.961,12.947,637.3041]
[1672912176202,54.11,12.961,12.948,10.0]
[1672912176834,53.65,12.964,12.95,0.06455254]
[1672912177147,53.65,12.964,12.949,54.13]
[1672912177148,53.65,12.964,12.952,0.06437573]
[1672912177463,10.0,12.963,12.952,0.06437573]
[1672912179880,53.65,12.964,12.952,0.06437573]
[1672912180090,10.0,12.963,12.952,0.06437573]
[1672912180833,53.65,12.964,12.952,0.06437573]
[1672912181043,10.0,12.963,12.952,0.06437573]
[1672912181568,64.13,12.966,12.952,10.06437573]
[1672912181779,64.13,12.966,12.953,10.0]
[1672912181985,64.13,12.966,12.955,0.06419646]
[1672912183668,44.7954,12.968,12.957,54.13]
[1672912183879,44.7954,12.968,12.959,54.13]
[1672912184090,10.0,12.971,12.96,10.0]
[1672912184514,10.0,12.971,12.961,0.06222711]
[1672912184829,52.9831,12.973,12.961,0.06222711]
[1672912187665,54.13,12.97,12.961,0.06222711]
[1672912187984,10.0,12.969,12.961,0.06222711]
[1672912189241,9.7646993,12.969,12.961,0.06222711]
[1672912191756,54.13,12.97,12.961,0.06222711]
[1672912191972,10.0,12.969,12.961,0.06222711]
[1672912192602,10.0,12.971,12.961,0.06222711]
[1672912193655,53.65,12.972,12.961,0.06222711]
[1672912193975,10.0,12.971,12.961,54.19222711]
[1672912194180,10.0,12.971,12.962,10.0]
[1672912194390,52.9831,12.973,12.962,10.0]
[1672912197235,52.9831,12.973,12.961,54.19222711]
[1672912199331,42.9831,12.973,12.962,10.0]
[1672912200912,10.0,12.972,12.962,10.0]
[1672912201115,10.0,12.972,12.961,54.19222711]
[1672912202278,9.77286895,12.972,12.962,10.0]
[1672912203011,42.9831,12.973,12.962,10.0]
[1672912205009,10.0,12.972,12.961,54.19222711]
[1672912208579,10.0,12.972,12.961,0.06222711]
[1672912209843,46.25,12.971,12.961,0.06222711]
[1672912210048,10.0,12.97,12.961,0.06222711]
[1672912210573,45.89,12.969,12.961,0.06222711]
[1672912210778,46.25,12.964,12.961,0.06222711]
[1672912211102,10.0,12.963,12.958,0.07115581]
[1672912211415,46.25,12.964,12.956,0.07131347]
[1672912211625,10.0,12.963,12.956,0.07131347]
[1672912211836,10.0,12.968,12.958,46.25]
[1672912212042,46.25,12.969,12.958,46.25]
[1672912212247,10.0,12.968,12.959,9.95217583]
[1672912212679,10.0,12.968,12.96,46.25]
[1672912212887,10.0,12.97,12.961,10.0]
[1672912213092,42.9831,12.973,12.961,10.0]
[1672912213093,89.2331,12.973,12.961,56.02]
[1672912213307,89.2331,12.973,12.962,0.06230224]
[1672912213521,42.9831,12.973,12.964,46.02]
[1672912213832,10.0,12.974,12.965,10.0]
[1672912214043,10.0,12.974,12.965,10.06360285]
[1672912214454,10.0,12.974,12.965,0.06360285]
[1672912215619,46.21,12.973,12.965,0.06360285]
[1672912215829,10.0,12.972,12.965,0.06360285]
[1672912216246,45.89,12.97,12.965,0.06360285]
[1672912216461,45.89,12.966,12.965,2.85e-06]
[1672912216776,10.0,12.965,12.955,46.02]
[1672912217611,10.06052169,12.965,12.955,46.085095]
[1672912220242,45.89,12.964,12.955,0.065095]
[1672912220555,10.0,12.963,12.955,0.065095]
[1672912222554,45.89,12.964,12.955,0.065095]
[1672912222763,10.0,12.963,12.955,0.065095]
[1672912223395,45.89,12.964,12.955,0.065095]
[1672912223608,10.0,12.963,12.955,0.065095]
[1672912223816,10.0,12.964,12.956,45.8]
[1672912224027,10.0,12.964,12.957,10.0]
[1672912224232,0.06052169,12.965,12.957,10.0]
[1672912225496,0.06052169,12.965,12.956,55.8]
[1672912226547,0.06052169,12.965,12.957,10.0]
[1672912227187,0.00052169,12.965,12.957,10.0]
[1672912227496,0.00052169,12.965,12.958,46.25]
[1672912227707,0.00052169,12.965,12.961,55.8]
[1672912227917,0.00052169,12.965,12.962,10.0]
[1672912228126,46.25,12.973,12.962,10.0]
[1672912228547,46.25,12.973,12.962,10.06733467]
[1672912228861,46.25,12.973,12.962,0.06733467]
[1672912229077,46.25,12.973,12.962,10.06733467]
[1672912231071,46.25,12.973,12.962,0.06733467]
[1672912232757,46.25,12.973,12.962,10.06733467]
[1672912233173,44.1863,12.972,12.962,10.06733467]
[1672912234330,45.89,12.976,12.964,46.25]
[1672912234538,10.0,12.975,12.965,10.06789792]
[1672912235796,46.25,12.977,12.966,45.8]
[1672912236117,10.0,12.976,12.967,10.06199575]
[1672912237584,45.89,12.979,12.968,46.25]
[1672912237796,10.0,12.978,12.969,10.0]
[1672912238531,10.0,12.978,12.968,46.25]
[1672912240740,45.89,12.979,12.969,10.0]
[1672912243053,45.89,12.979,12.968,46.25]
[1672912244515,45.89,12.979,12.969,10.0]
[1672912245883,92.8092,12.981,12.971,10.0]
[1672912246096,92.8092,12.981,12.971,0.07108543]
[1672912246307,92.8092,12.981,12.972,10.0]
[1672912246619,92.8092,12.981,12.971,10.07108543]
[1672912246833,92.8092,12.981,12.971,0.07108543]
[1672912247150,10.0,12.98,12.971,0.07108543]
[1672912247459,46.25,12.977,12.971,0.07108543]
[1672912247675,10.0,12.976,12.971,0.07108543]
[1672912250720,46.25,12.977,12.971,0.07108543]
[1672912250930,10.0,12.976,12.971,0.07108543]
[1672912252083,46.25,12.974,12.971,8.543e-05]
[1672912252300,46.25,12.972,12.963,584.0]
[1672912252613,10.0,12.968,12.958,46.25]
[1672912252818,46.25,12.967,12.956,46.25]
[1672912253034,10.0612944,12.966,12.957,0.06634929]
[1672912253454,10.0612944,12.966,12.957,10.06634929]
[1672912253664,10.0612944,12.966,12.957,0.06634929]
[1672912257977,0.0612944,12.966,12.957,0.06634929]
[1672912258398,10.0612944,12.966,12.957,0.06634929]
[1672912260922,0.0612944,12.966,12.957,0.06634929]
[1672912261133,0.0612944,12.966,12.959,46.02]
[1672912262390,0.0612944,12.966,12.957,45.86634929]
[1672912262605,45.89,12.965,12.957,0.06634929]
[1672912262816,45.89,12.963,12.957,0.06634929]
[1672912263028,10.0,12.962,12.957,0.06634929]
[1672912263337,45.89,12.963,12.957,0.06634929]
[1672912263557,10.0,12.964,12.957,0.06634929]
[1672912264710,0.0612944,12.966,12.957,0.06634929]
[1672912265126,0.0612944,12.966,12.957,46.31634929]
[1672912269647,0.0612944,12.966,12.958,15.29]
[1672912270799,10.0,12.962,12.957,0.06634929]
[1672912272582,10.0,12.962,12.957,4.929e-05]
[1672912272797,15.33,12.961,12.951,15.42]
[1672912273112,10.0,12.96,12.951,15.42]
[1672912273844,15.42,12.958,12.951,0.06580551]
[1672912274163,10.0,12.957,12.951,0.06580551]
[1672912274376,15.42,12.956,12.951,0.06580551]
[1672912274682,10.0,12.955,12.951,0.06580551]
[1672912275631,25.42,12.955,12.944,15.42]
[1672912275841,25.42,12.955,12.945,10.0]
[1672912276580,25.48133134,12.955,12.945,10.06982246]
[1672912276786,25.48133134,12.955,12.945,0.06982246]
[1672912277838,15.42,12.953,12.945,0.06982246]
[1672912278051,10.0,12.952,12.945,0.06982246]
[1672912278781,25.48133134,12.955,12.945,0.06982246]
[1672912280888,0.06133134,12.955,12.948,15.42]
[1672912281096,0.00033134,12.955,12.949,10.0]
[1672912281305,15.42,12.958,12.949,10.0]
[1672912282254,15.48343314,12.958,12.949,10.06467961]
[1672912282453,15.48343314,12.958,12.949,0.06467961]
[1672912283408,10.0,12.957,12.949,0.06467961]
[1672912285928,25.3,12.957,12.949,0.06467961]
[1672912286139,15.42,12.955,12.949,0.06467961]
[1672912286348,10.0,12.954,12.949,0.06467961]
[1672912288339,15.42,12.957,12.949,0.06467961]
[1672912288560,10.0,12.956,12.949,0.06467961]
[1672912289814,0.06343314,12.958,12.949,0.06467961]
[1672912290968,15.42,12.956,12.949,0.06467961]
[1672912291178,10.0,12.955,12.949,0.06467961]
[1672912294859,9.93653596,12.955,12.949,0.06467961]
[1672912295490,25.42,12.956,12.949,0.06467961]
[1672912296859,15.42,12.956,12.949,0.06467961]
[1672912297591,10.0,12.956,12.949,0.06467961]
[1672912299691,0.08627761,12.949,12.947,46.34]
[1672912300008,0.00027761,12.949,12.948,10.0]
[1672912300852,0.00027761,12.949,12.947,46.34]
[1672912301160,0.00083362,12.953,12.947,46.34]
[1672912304837,0.00083362,12.953,12.95,46.34]
[1672912305045,0.06515853,12.956,12.951,10.0]
[1672912305466,0.06515853,12.956,12.95,46.34]
[1672912306836,0.06515853,12.956,12.949,0.06906988]
[1672912310305,46.39515853,12.956,12.949,0.06906988]
[1672912310618,10.0,12.955,12.949,0.06906988]
[1672912312410,46.15,12.954,12.949,0.06906988]
[1672912312720,10.0,12.953,12.949,0.06906988]
[1672912315035,53.8138,12.955,12.949,0.06906988]
[1672912315459,53.64068777,12.955,12.949,0.06906988]
[1672912318816,46.40515853,12.956,12.949,0.06906988]
[1672912319018,10.0,12.955,12.949,0.06906988]
[1672912320499,46.40515853,12.956,12.949,0.06906988]
[1672912320706,0.06515853,12.956,12.949,0.06906988]
[1672912320921,10.0,12.955,12.949,0.06906988]
[1672912321652,0.06515853,12.956,12.949,0.06906988]
[1672912323017,46.21515853,12.956,12.949,0.06906988]
[1672912323226,46.0,12.954,12.949,0.06906988]
[1672912323441,46.33,12.952,12.949,6.988e-05]
[1672912323652,10.0,12.951,12.942,584.0]
[1672912323861,10.0,12.951,12.941,46.34]
[1672912324281,10.06430919,12.951,12.941,46.40515659]
[1672912327441,46.0,12.95,12.941,0.06515659]
[1672912327642,10.0,12.949,12.941,0.06515659]
[1672912328489,10.0,12.949,12.941,46.40515659]
[1672912328697,10.06430919,12.951,12.941,15.52515659]
[1672912329436,10.06430919,12.951,12.941,15.40257153]
[1672912330590,10.06430919,12.951,12.941,15.4733554]
[1672912333427,0.06430919,12.951,12.941,15.4733554]
[1672912333633,0.06430919,12.951,12.943,15.46]
[1672912334060,0.06430919,12.951,12.944,10.0]
[1672912334583,0.06430919,12.951,12.943,15.46]
[1672912337419,0.06430919,12.951,12.941,15.53078387]
[1672912342360,25.46,12.952,12.941,15.53078387]
[1672912342361,10.0,12.952,12.951,0.05037037]
[1672912342569,10.0,12.952,12.937,25.46]
[1672912342570,25.46,12.952,12.937,25.46]
[1672912342782,15.44,12.948,12.937,25.46]
[1672912343094,10.0,12.947,12.937,25.46]
[1672912343305,10.07012224,12.947,12.937,25.53022523]
[1672912344147,0.07012224,12.947,12.937,25.53022523]
[1672912345088,10.07012224,12.947,12.937,25.53022523]
[1672912345716,0.07012224,12.947,12.939,15.46]
[1672912345930,0.07012224,12.947,12.94,10.0]
[1672912346344,0.07012224,12.947,12.939,15.46]
[1672912348984,0.07012224,12.947,12.94,10.0]
[1672912349713,0.07012224,12.947,12.943,10.0]
[1672912350031,15.46,12.956,12.945,25.46]
[1672912350556,15.46,12.956,12.946,10.0]
[1672912350973,15.52584727,12.956,12.946,10.06401031]
[1672912351182,0.06584727,12.956,12.949,15.46]
[1672912351392,15.46,12.966,12.955,15.46]
[1672912351814,10.0,12.965,12.955,15.46]
[1672912352445,10.06567579,12.965,12.955,15.52599016]
[1672912352973,10.0,12.962,12.955,0.06599016]
[1672912353181,25.46,12.962,12.955,0.06599016]
[1672912358126,15.46,12.962,12.955,0.06599016]
[1672912358334,25.46,12.963,12.955,0.06599016]
[1672912358755,15.46,12.963,12.955,0.06599016]
[1672912360223,0.06567579,12.965,12.955,15.52599016]
[1672912360543,15.44,12.972,12.962,15.46]
[1672912360754,10.0,12.971,12.963,25.46]
[1672912361693,10.0,12.973,12.963,25.46]
[1672912362743,10.0,12.973,12.965,15.46]
[1672912362958,15.39,12.976,12.965,15.46]
[1672912363169,15.39,12.976,12.966,0.06098145]
[1672912363374,15.39,12.976,12.966,10.06098145]
[1672912364334,15.46,12.977,12.967,15.46]
[1672912364539,10.0,12.976,12.968,10.0]
[1672912364954,15.44,12.979,12.969,15.46]
[1672912365172,10.0,12.978,12.969,15.52231649]
[1672912366534,15.44,12.979,12.969,15.52231649]
[1672912366952,61.5808,12.981,12.97,15.46]
[1672912367165,46.1208,12.981,12.972,15.46]
[1672912367379,15.46,12.982,12.973,10.0]
[1672912367791,15.46,12.982,12.972,15.53005021]
[1672912368213,10.0,12.981,12.972,15.53005021]
[1672912368426,10.0,12.981,12.972,0.07005021]
[1672912368638,15.46,12.973,12.964,584.0]
[1672912368851,15.46,12.972,12.964,584.0]
[1672912369063,10.0,12.971,12.961,15.46]
[1672912369271,15.39,12.97,12.96,15.46]
[1672912369685,10.0,12.969,12.961,10.0]
[1672912370213,10.0,12.969,12.96,15.52318492]
[1672912371477,0.06556307,12.97,12.961,25.46]
[1672912371684,0.06556307,12.97,12.962,10.0]
[1672912371891,0.06556307,12.97,12.963,15.46]
[1672912372311,0.06556307,12.97,12.965,15.46]
[1672912372740,0.06556307,12.97,12.966,10.0]
[1672912373898,0.06556307,12.97,12.965,15.46]
[1672912384195,0.06556307,12.97,12.966,15.46]
[1672912384423,0.06556307,12.97,12.967,10.0]
[1672912384613,0.07077743,12.973,12.967,10.0]
[1672912384827,0.06244079,12.975,12.967,10.0]
[1672912386408,10.0,12.977,12.975,0.12536356]
[1672912387461,15.46,12.978,12.975,0.12536356]
[1672912389146,42.8258,12.981,12.975,0.12536356]
[1672912389463,15.44,12.982,12.975,0.12536356]
[1672912392194,15.39,12.979,12.975,0.12536356]
[1672912392405,10.0,12.978,12.975,0.12536356]
[1672912393033,15.44,12.98,12.975,0.12536356]
[1672912394813,10.0,12.981,12.975,0.12536356]
[1672912396292,15.44,12.982,12.975,0.12536356]
[1672912396609,15.46,12.985,12.975,15.58536356]
[1672912396813,15.46,12.985,12.975,15.65472196]
[1672912397020,10.0,12.984,12.975,15.65472196]
[1672912397238,15.46,12.982,12.975,0.19472196]
[1672912397443,10.0,12.981,12.975,0.19472196]
[1672912398603,15.46,12.982,12.975,0.19472196]
[1672912401760,15.46,12.985,12.975,15.65472196]
[1672912401970,10.0,12.984,12.975,15.65472196]
[1672912402920,10.0,12.984,12.976,15.46]
[1672912403762,10.0,12.986,12.976,15.46]
[1672912405341,15.39,12.987,12.976,15.46]
[1672912405964,10.0,12.986,12.976,15.46]
[1672912407337,15.39,12.987,12.976,15.46]
[1672912407546,10.0,12.989,12.978,15.46]
[1672912407547,15.46,12.989,12.978,15.46]
[1672912407759,10.0,12.988,12.979,25.52908944]
[1672912408069,15.46,12.993,12.983,15.46]
[1672912408282,15.46,12.993,12.984,10.0]
[1672912409222,15.46,12.993,12.983,15.46]
[1672912410071,10.0,12.992,12.983,15.46]
[1672912411962,46.298,13.002,12.991,15.46]
[1672912412276,57.61,13.018,12.984,71.84]
[1672912412277,50.0,13.014,13.001,15.46]
[1672912412486,50.0,13.014,13.003,0.06142014]
[1672912412693,10.0,13.013,12.987,10.0]
[1672912412906,15.46,13.0,12.989,15.46]
[1672912413113,15.46,12.997,12.986,15.46]
[1672912413320,10.0,12.996,12.987,10.0]
[1672912413531,10.0,12.996,12.988,15.46]
[1672912413744,0.06497252,12.997,12.989,15.46]
[1672912413958,0.06916986,12.998,12.99,10.0]
[1672912414578,0.06916986,12.998,12.991,15.46]
[1672912414790,0.06916986,12.998,12.993,15.46]
[1672912415211,10.0,13.005,12.995,15.46]
[1672912415424,10.0,13.005,12.998,15.46]
[1672912415637,15.46,13.009,12.998,15.46]
[1672912415849,10.0,13.008,12.998,15.46]
[1672912416263,25.46,13.013,13.002,15.46]
[1672912416477,15.46,13.008,13.003,0.07103748]
[1672912416688,10.0,13.007,13.001,0.06690768]
[1672912416905,15.46,13.006,12.999,0.06121268]
[1672912417210,10.0,13.005,12.999,0.06121268]
[1672912417425,15.46,13.003,12.999,0.06121268]
[1672912417630,10.0,13.005,12.999,0.06121268]
[1672912417631,15.39,13.001,12.999,0.06121268]
[1672912417842,10.0,13.0,12.995,0.06297286]
[1672912418054,10.0,13.0,12.993,0.06165958]
[1672912419736,15.39,13.001,12.993,0.06165958]
[1672912421425,10.0,13.0,12.993,0.06165958]
[1672912424157,15.46,12.998,12.993,0.06165958]
[1672912424365,10.0,12.997,12.993,0.06165958]
[1672912426047,15.46,12.998,12.993,0.06165958]
[1672912426571,25.44,13.0,12.993,0.06165958]
[1672912426985,15.46,12.996,12.993,5.958e-05]
[1672912427201,10.0,12.995,12.986,15.46]
[1672912427938,10.06751762,12.995,12.986,15.52615053]
[1672912428357,0.06751762,12.995,12.986,15.52615053]
[1672912429937,0.06751762,12.995,12.99,15.46]
[1672912430143,25.46,13.004,12.993,15.46]
[1672912430352,25.46,13.004,12.994,10.0]
[1672912431194,15.46,13.006,12.995,15.46]
[1672912431511,15.46,13.006,12.996,10.0]
[1672912431718,15.39,13.007,12.997,15.46]
[1672912431932,10.0,13.006,12.997,15.52656599]
[1672912432141,15.44,12.998,12.976,634.0]
[1672912432352,15.39,12.995,12.977,55.629]
[1672912432558,10.0,12.994,12.984,15.46]
[1672912432877,10.0,12.994,12.985,10.0]
[1672912433085,10.06771291,12.994,12.985,10.06504952]
[1672912433820,0.06771291,12.994,12.985,10.06504952]
[1672912434548,15.46,12.993,12.985,0.06504952]
[1672912434762,15.44,12.992,12.985,0.06504952]
[1672912434972,15.46,12.99,12.985,0.06504952]
[1672912435184,10.0,12.989,12.985,0.06504952]
[1672912436235,15.44,12.987,12.985,0.06504952]
[1672912436445,10.0,12.986,12.981,0.06152281]
[1672912436657,10.0,12.986,12.979,0.06207536]
[1672912437286,15.44,12.987,12.979,0.06207536]
[1672912437491,46.13,12.987,12.979,0.06207536]
[1672912437707,10.0,12.986,12.979,0.06207536]
[1672912442332,0.06568525,12.988,12.979,0.06207536]
[1672912448426,0.06568525,12.988,12.979,10.06207536]
[1672912450418,0.06568525,12.988,12.982,45.92]
[1672912450633,0.00417047,12.988,12.986,46.13]
[1672912450839,10.0,12.996,12.987,10.0]
[1672912451260,46.13,12.997,12.987,10.0]
[1672912451572,46.13,12.997,12.987,10.06837145]
[1672912452734,46.13,12.999,12.987,56.19837145]
[1672912452945,10.0,12.998,12.988,0.06121109]
[1672912454307,38.458,13.005,12.988,0.06121109]
[1672912454308,57.63,13.015,12.988,1834.06121109]
[1672912454620,49.91272251,13.023,13.011,45.91771013]
[1672912454835,10.0,13.022,13.012,0.07060958]
[1672912455040,10.0,13.022,13.012,10.07060958]
[1672912455252,10.0,13.022,13.012,0.07060958]
[1672912455462,10.0,13.022,13.013,46.13]
[1672912455780,59.91272251,13.023,13.013,46.13]
[1672912456410,10.0,13.023,13.013,46.13]
[1672912456729,59.91272251,13.023,13.013,46.13]
[1672912457146,106.04272251,13.023,13.012,0.07060958]
[1672912458407,46.13,13.02,13.012,0.07060958]
[1672912458609,10.0,13.019,13.012,0.07060958]
[1672912459248,10.0,13.022,13.012,0.07060958]
[1672912459456,10.0,13.022,13.013,46.13]
[1672912459666,46.13,13.026,13.014,45.78]
[1672912459876,10.0,13.025,13.015,10.06139273]
[1672912460716,46.13,13.026,13.015,10.06139273]
[1672912460925,46.13,13.028,13.016,45.92]
[1672912461139,45.7121,13.029,13.02,46.13]
[1672912461347,10.0,13.03,13.021,10.0]
[1672912462190,46.13,13.026,13.02,0.06177126]
[1672912462396,10.0,13.025,13.02,0.06177126]
[1672912462606,46.13,13.026,13.02,0.06177126]
[1672912462818,10.0,13.03,13.02,0.06177126]
[1672912462819,46.13,13.028,13.02,0.06177126]
[1672912463029,10.0,13.027,13.02,0.06177126]
[1672912463974,46.13,13.028,13.02,0.06177126]
[1672912464385,46.13,13.026,13.02,0.06177126]
[1672912464602,10.0,13.025,13.02,0.06177126]
[1672912465335,46.13,13.023,13.012,10.0]
[1672912465545,10.0,13.024,13.012,10.0]
[1672912465546,56.13,13.024,13.014,10.0]
[1672912465757,10.0,13.025,13.015,45.92]
[1672912465965,46.13,13.026,13.016,10.0]
[1672912466172,10.0,13.025,13.016,10.0]
[1672912466494,10.06910265,13.025,13.016,10.07113727]
[1672912467018,0.06910265,13.025,13.016,10.07113727]
[1672912468162,0.06910265,13.025,13.016,56.20113727]
[1672912468378,0.06910265,13.025,13.019,10.0]
[1672912470384,0.06910265,13.025,13.018,46.13]
[1672912470694,46.13,13.019,13.016,0.00113727]
[1672912471009,46.13,13.019,13.008,10.0]
[1672912471220,10.0,13.018,13.008,10.0]
[1672912471953,10.06077047,13.018,13.008,10.06062477]
[1672912472899,46.13,13.017,13.008,0.06062477]
[1672912473111,10.0,13.016,13.008,0.06062477]
[1672912473841,46.13,13.017,13.008,0.06062477]
[1672912474058,10.0,13.016,13.008,46.01062477]
[1672912474366,0.06077047,13.018,13.011,10.0]
[1672912474576,0.06077047,13.018,13.012,10.0]
[1672912475629,0.06077047,13.018,13.013,46.13]
[1672912475839,0.06077047,13.018,13.017,45.78]
[1672912476049,0.0606489,13.022,13.017,45.78]
[1672912476365,0.06741901,13.024,13.017,45.78]
[1672912476573,0.064192,13.025,13.017,45.78]
[1672912482571,45.814192,13.025,13.016,0.06391603]
[1672912482782,10.0,13.024,13.016,0.06391603]
[1672912483621,0.064192,13.025,13.016,0.06391603]
[1672912483833,55.75,13.027,13.025,0.17510219]
[1672912484986,45.75,13.027,13.025,0.17510219]
[1672912486251,10.0,13.026,13.025,0.17510219]
[1672912486672,10.0,13.026,13.021,0.06864041]
[1672912488772,10.0,13.023,13.021,0.06864041]
[1672912489086,45.75,13.022,13.017,0.06148217]
[1672912489300,46.13,13.019,13.015,0.0662057]
[1672912489502,10.0,13.018,13.012,0.06033356]
[1672912489718,10.0,13.018,13.01,0.06633424]
[1672912490138,46.10892988,13.02,13.01,0.06633424]
[1672912490557,10.0,13.019,13.01,0.06633424]
[1672912491295,56.13,13.019,13.01,0.06633424]
[1672912492872,45.75,13.014,13.01,0.06633424]
[1672912493085,10.0,13.013,13.01,0.06633424]
[1672912493397,10.0,13.013,13.007,584.06101953]
[1672912493602,10.0,13.013,13.007,0.06101953]
[1672912493809,45.75,13.012,13.007,0.06101953]
[1672912494238,10.0,13.011,13.007,0.06101953]
[1672912494763,46.13,13.01,13.007,0.06101953]
[1672912494975,10.0,13.009,13.004,0.06199781]
[1672912495289,10.0,13.009,13.002,0.07119776]
[1672912496439,46.13,13.01,13.002,0.07119776]
[1672912496966,10.0,13.009,13.002,0.07119776]
[1672912497179,46.13,13.01,13.002,0.07119776]
[1672912497495,0.06431244,13.011,13.002,45.85119776]
[1672912498645,0.06431244,13.011,13.003,10.0]
[1672912500017,0.06431244,13.011,13.002,45.85119776]
[1672912500750,0.06431244,13.011,13.003,10.0]
[1672912502221,0.06431244,13.011,13.006,10.0]
[1672912503169,0.06431244,13.011,13.005,45.78]
[1672912506109,1.244e-05,13.011,13.008,46.13]
[1672912506321,10.0,13.019,13.01,45.92]
[1672912507159,10.0,13.019,13.01,45.98099198]
[1672912507372,10.0,13.018,13.01,45.98099198]
[1672912508520,10.0,13.019,13.01,45.98099198]
[1672912509673,10.0,13.02,13.01,45.98099198]
[1672912511261,46.13,13.021,13.01,45.98099198]
[1672912511995,44.0636,13.025,13.014,46.13]
[1672912512206,44.0636,13.025,13.015,10.06749347]
[1672912512415,10.0,13.024,13.015,0.06749347]
[1672912512832,56.13,13.024,13.015,0.06749347]
[1672912513147,46.13,13.022,13.015,0.06749347]
[1672912513358,10.0,13.021,13.015,0.06749347]
[1672912513989,55.75,13.024,13.015,0.06749347]
[1672912514413,44.0636,13.025,13.015,0.06749347]
[1672912514731,44.0636,13.025,13.015,10.06749347]
[1672912515140,46.13,13.026,13.015,10.06749347]
[1672912515779,10.06405772,13.025,13.015,0.00177747]
[1672912520085,0.06405772,13.025,13.018,45.78]
[1672912520300,0.06405772,13.025,13.023,46.13]
[1672912520510,0.06733187,13.029,13.023,46.13]
[1672912520715,0.06733187,13.029,13.021,46.19686164]
[1672912521662,0.06733187,13.029,13.021,0.06686164]
[1672912521876,10.06733187,13.029,13.021,0.06686164]
[1672912526495,0.06733187,13.029,13.021,0.06686164]
[1672912526705,0.06733187,13.029,13.022,45.95]
[1672912526917,0.06733187,13.029,13.024,46.13]